bitfinex/quotes_ETHUSD_20220215
["timestamp","ask_amount","ask_price","bid_price","bid_amount"]
[1644920011233,1.34952454,3090.9,3090.8,0.01435182]
[1644920011679,4.57089916,3090.9,3090.8,0.4905839]
[1644920011879,4.57089916,3090.9,3090.8,0.01435182]
[1644920012081,4.57089916,3090.9,3090.8,0.49063076]
[1644920012278,4.57089916,3090.9,3090.8,0.01435182]
[1644920013287,4.57089916,3090.9,3090.8,0.49056342]
[1644920013483,4.57089916,3090.9,3090.8,0.49058659]
[1644920013683,4.57089916,3090.9,3090.8,0.01435182]
[1644920013884,1.34952454,3090.9,3090.8,0.49053881]
[1644920014085,1.34952454,3090.9,3090.8,0.49048693]
[1644920014784,1.34952454,3090.9,3090.8,0.44048693]
[1644920015086,1.34952454,3090.9,3090.8,0.45483875]
[1644920020382,1.34952454,3090.9,3090.8,0.44048693]
[1644920020583,2.15855454,3090.9,3090.8,0.44048693]
[1644920020982,2.15855454,3090.9,3090.7,3.30267035]
[1644920021184,2.07192234,3090.9,3090.7,3.3]
[1644920021383,2.07192234,3090.9,3090.7,3.30267035]
[1644920022385,2.07192234,3090.9,3090.7,3.3]
[1644920022932,0.80905,3090.8,3090.7,3.3]
[1644920023232,0.80905,3090.8,3090.7,1.83139959]
[1644920027294,0.75905,3090.8,3090.7,1.83139959]
[1644920034579,1.26289234,3090.9,3090.7,1.83139959]
[1644920034781,1.26289234,3090.9,3090.8,0.51220807]
[1644920034983,2.12267028,3090.9,3090.8,0.51220807]
[1644920035585,2.93167028,3090.9,3090.8,0.51220807]
[1644920037839,2.12262708,3090.9,3090.8,0.51220807]
[1644920043488,1.31362708,3090.9,3090.7,1.83406995]
[1644920043684,0.85977794,3090.8,3090.7,1.83406995]
[1644920043885,0.85977794,3090.8,3090.7,2.34315788]
[1644920044987,1.66879794,3090.8,3090.7,2.34315788]
[1644920045434,1.66879794,3090.8,3090.7,2.3431648]
[1644920045634,1.66879794,3090.8,3090.7,1.83139959]
[1644920046139,1.66879794,3090.8,3090.7,2.34316291]
[1644920046335,1.66879794,3090.8,3090.7,1.83139959]
[1644920046934,1.66879794,3090.8,3090.7,2.34313522]
[1644920047134,1.66879794,3090.8,3090.7,1.83139959]
[1644920047334,1.66879794,3090.8,3090.7,2.34310214]
[1644920048640,0.00303881,3091.1,3090.8,7.0]
[1644920048842,0.61891761,3091.4,3090.8,7.0]
[1644920048843,0.93375,3091.5,3091.2,0.80882]
[1644920049289,0.00266972,3091.4,3091.2,0.80882]
[1644920049587,1.62032962,3091.4,3091.2,0.80882]
[1644920049887,2.38924688,3091.4,3091.2,0.80882]
[1644920050088,2.38924688,3091.4,3091.1,2.27434499]
[1644920050089,0.61624789,3091.3,3091.1,2.27434499]
[1644920050887,0.61624789,3091.3,3091.1,2.57434499]
[1644920051588,0.61624789,3091.3,3091.1,3.38329499]
[1644920051788,1.42518029,3091.3,3091.1,3.38329499]
[1644920051989,1.7921705,3091.3,3091.1,3.38329499]
[1644920052188,2.40841839,3091.3,3091.1,2.57434499]
[1644920052589,2.40841839,3091.3,3091.1,3.38329499]
[1644920052841,2.40841839,3091.3,3091.1,3.08329499]
[1644920053234,1.7921705,3091.3,3091.1,3.08329499]
[1644920053435,2.70841839,3091.3,3091.1,3.08329499]
[1644920054536,2.0921705,3091.3,3091.1,3.08329499]
[1644920055141,2.0921705,3091.3,3091.1,1.46539499]
[1644920055142,3.80809123,3091.2,3091.1,1.46539499]
[1644920055337,4.00089334,3091.2,3091.1,1.46539499]
[1644920056138,5.00089334,3091.2,3091.1,1.46539499]
[1644920056989,1.80905,3091.2,3091.1,1.46539499]
[1644920057790,0.80905,3091.2,3091.1,1.46539499]
[1644920057988,1.42772538,3091.2,3091.1,1.46539499]
[1644920058489,0.80905,3091.2,3091.1,1.46539499]
[1644920060342,4.08963267,3091.2,3091.1,1.46539499]
[1644920060545,5.08963267,3091.2,3091.1,1.46539499]
[1644920060742,0.80905,3091.2,3091.1,1.46539499]
[1644920061545,1.42767767,3091.2,3091.1,1.46539499]
[1644920062045,4.5,3091.1,3090.7,2.21272297]
[1644920062246,4.5,3091.1,3090.8,0.00267032]
[1644920062247,3.965,3091.0,3090.8,0.00267032]
[1644920062447,1.91824,3090.9,3090.8,0.00267032]
[1644920062647,3.0860647,3090.9,3090.8,0.00267032]
[1644920063245,3.0860647,3090.9,3090.7,1.69994024]
[1644920063446,0.465,3090.8,3090.7,1.70261059]
[1644920063993,0.465,3090.8,3090.7,1.70872946]
[1644920064397,0.465,3090.8,3090.7,1.70605911]
[1644920064398,3.87923697,3090.8,3090.7,1.70605911]
[1644920064891,5.70422882,3090.8,3090.7,1.70605911]
[1644920065293,5.67836832,3090.8,3090.7,1.70605911]
[1644920065492,7.88200778,3090.8,3090.7,0.42060612]
[1644920066092,7.05701593,3090.8,3090.7,0.42060612]
[1644920067842,7.88200778,3090.8,3090.7,0.42060612]
[1644920068040,7.05701593,3090.8,3090.7,0.42060612]
[1644920068640,7.88591048,3090.8,3090.7,0.42060612]
[1644920068843,7.88591048,3090.8,3090.3,18.95452798]
[1644920069041,0.61731756,3090.5,3090.3,18.95452798]
[1644920069340,3.56442307,3090.4,3090.3,18.95452798]
[1644920069543,1.01471945,3090.4,3090.3,18.95452798]
[1644920069842,1.01471945,3090.4,3089.4,0.25900864]
[1644920069843,0.37006871,3090.3,3089.4,0.25900864]
[1644920070042,5.61750905,3089.5,3089.4,0.00900864]
[1644920070242,1.29389455,3089.5,3089.4,0.00900864]
[1644920070441,2.74272611,3089.5,3089.4,0.00900864]
[1644920070642,6.74272611,3089.5,3089.4,0.00900864]
[1644920070947,5.17147611,3089.5,3089.4,0.01801728]
[1644920071144,7.60022281,3089.5,3089.4,0.01801728]
[1644920071342,12.60022281,3089.5,3088.5,0.02377376]
[1644920071595,1.619211,3089.2,3088.6,0.50489413]
[1644920071790,3.084211,3089.2,3088.6,0.50489413]
[1644920071990,0.82889455,3089.1,3088.6,0.50489413]
[1644920072192,0.80963,3089.0,3088.6,0.50489413]
[1644920072391,4.07652548,3088.9,3088.6,0.50489413]
[1644920072591,4.31064224,3088.9,3088.5,0.02377376]
[1644920072792,1.0,3088.8,3088.5,0.02377376]
[1644920073191,1.0,3088.8,3088.6,0.00288411]
[1644920073392,0.80962,3088.7,3088.6,0.00288411]
[1644920073593,1.30267123,3088.7,3088.6,0.00288411]
[1644920074192,2.30267123,3088.7,3088.5,0.02377376]
[1644920074396,3.11231123,3088.7,3088.6,3.3]
[1644920076941,2.30267123,3088.7,3088.6,3.3]
[1644920079196,5.80267123,3088.7,3088.6,3.3]
[1644920079391,2.30267123,3088.7,3088.6,3.3]
[1644920080994,0.13911745,3088.8,3088.6,3.3]
[1644920081193,0.80949,3088.9,3088.6,3.3]
[1644920081393,1.28096804,3088.9,3088.6,3.3]
[1644920081794,0.80949,3088.9,3088.6,3.3]
[1644920082195,4.02201244,3088.9,3088.6,3.3]
[1644920082394,5.13156964,3088.9,3088.6,3.3]
[1644920082596,5.28011086,3088.9,3088.6,3.3]
[1644920082853,5.28011086,3088.9,3088.6,3.3028261]
[1644920083656,5.28011086,3088.9,3088.6,3.3]
[1644920083860,5.28011086,3088.9,3088.6,3.3028261]
[1644920084158,1.465,3088.8,3088.7,0.00609788]
[1644920084358,4.97769716,3088.8,3088.7,0.00609788]
[1644920086061,5.82295138,3088.8,3088.7,0.00609788]
[1644920086259,5.82251309,3088.8,3088.7,0.00609788]
[1644920086491,4.97769716,3088.8,3088.7,0.00609788]
[1644920088298,1.465,3088.8,3088.7,0.00609788]
[1644920088495,1.0,3088.8,3088.7,0.00609788]
[1644920088894,0.80961,3088.7,3088.6,1.83960454]
[1644920089297,1.10961,3088.7,3088.6,1.83960454]
[1644920089495,4.54724041,3088.7,3088.6,1.83960454]
[1644920089696,5.54724041,3088.7,3088.6,1.83650098]
[1644920090547,2.29109287,3088.7,3088.6,1.83650098]
[1644920090747,5.54162478,3088.7,3088.6,1.83650098]
[1644920095096,0.48564134,3089.2,3088.6,1.83650098]
[1644920095097,1.32294,3089.8,3088.7,7.0]
[1644920095293,1.32294,3089.8,3088.8,0.3]
[1644920095294,0.81564914,3089.7,3088.8,0.3]
[1644920095492,0.80943,3089.4,3088.7,7.0]
[1644920095694,0.80943,3089.4,3088.8,0.80936]
[1644920096191,1.6189658,3089.4,3089.1,0.00310644]
[1644920096392,1.78057913,3089.4,3089.1,0.00310644]
[1644920096791,1.78057913,3089.4,3088.9,0.80957]
[1644920096992,0.80956,3089.3,3088.9,0.80957]
[1644920097191,1.6191221,3089.3,3089.1,0.00191594]
[1644920097391,1.78201611,3089.3,3089.1,0.00191594]
[1644920098042,0.97245401,3089.3,3089.1,0.99469847]
[1644920098246,11.5373,3090.1,3089.2,3.14463701]
[1644920098545,0.79986681,3090.0,3089.2,3.14463701]
[1644920098745,0.79986681,3090.0,3089.2,4.25396701]
[1644920099148,0.80927,3089.8,3089.2,2.72787]
[1644920099344,0.80927,3089.8,3089.3,4.43484034]
[1644920099544,0.80927,3089.8,3089.4,0.00191572]
[1644920099746,2.20393671,3090.2,3089.4,0.00191572]
[1644920099945,0.80003821,3090.1,3089.4,0.81120572]
[1644920100246,0.80928,3089.8,3089.4,0.81120572]
[1644920100451,0.80928,3089.8,3089.3,1.14070747]
[1644920100851,0.80928,3089.8,3089.6,0.00311367]
[1644920101794,1.6186442,3089.8,3089.3,1.14070747]
[1644920101993,0.8094,3089.6,3089.5,0.00311371]
[1644920102794,0.8094,3089.6,3089.3,1.14070747]
[1644920103197,0.8094,3089.6,3089.4,0.0031138]
[1644920103998,0.8094,3089.6,3089.4,0.00606602]
[1644920104802,2.20393671,3090.2,3089.3,0.00311383]
[1644920105000,0.80225055,3090.1,3089.4,1.6183]
[1644920105245,2.20393671,3090.2,3089.5,23.32912763]
[1644920105546,2.20393671,3090.2,3089.6,1.0]
[1644920105845,2.20393671,3090.2,3089.7,1.34140848]
[1644920106047,2.20393671,3090.2,3089.7,1.64140848]
[1644920106245,2.20393671,3090.2,3089.8,1.61814]
[1644920106644,2.20393671,3090.2,3089.9,1.10909]
[1644920106844,2.20393671,3090.2,3090.0,0.80911]
[1644920108046,2.20393671,3090.2,3090.0,3.97846121]
[1644920108246,2.20393671,3090.2,3090.0,0.80911]
[1644920109092,0.16034663,3090.1,3090.0,0.80911]
[1644920109291,0.32069326,3090.1,3090.0,1.59683]
[1644920109693,0.32069326,3090.1,3090.0,0.78772]
[1644920109895,0.32069326,3090.1,3090.0,4.08772]
[1644920110093,0.32069326,3090.1,3090.0,4.87544]
[1644920110496,0.32069326,3090.1,3090.0,3.40647273]
[1644920110697,0.32069326,3090.1,3090.0,4.19419273]
[1644920110894,0.33559716,3090.1,3090.0,4.19419273]
[1644920111495,0.33559716,3090.1,3090.0,7.41012814]
[1644920111895,0.00311356,3091.2,3090.0,7.41012814]
[1644920111896,0.00311356,3091.2,3090.1,7.0]
[1644920112096,0.00311356,3091.2,3090.2,4.83360526]
[1644920112295,0.00311356,3091.2,3090.3,0.3]
[1644920112496,0.80893,3091.4,3090.3,0.3]
[1644920112760,0.80893,3091.4,3090.2,4.02474526]
[1644920112761,0.00311381,3091.2,3090.9,1.03888484]
[1644920112951,0.00311381,3091.2,3090.5,0.80892]
[1644920113550,0.00311381,3091.2,3090.4,0.00311462]
[1644920113752,1.80897,3091.2,3090.3,6.6349]
[1644920114056,4.23514343,3091.1,3090.4,0.00311467]
[1644920114251,4.53514343,3091.1,3090.4,0.00311467]
[1644920114452,1.0,3091.0,3090.4,0.00311467]
[1644920114654,3.5680111,3090.9,3090.4,0.00311467]
[1644920114955,0.98168839,3090.8,3090.1,0.01307106]
[1644920115154,0.98168839,3090.8,3090.4,0.00311462]
[1644920115556,0.3,3090.7,3090.4,0.00311462]
[1644920115755,0.48225059,3090.7,3090.4,0.00311462]
[1644920115956,0.80913,3090.6,3090.4,0.00311462]
[1644920116256,0.80913,3090.6,3090.1,0.01307106]
[1644920116495,0.48225059,3090.7,3090.4,0.00311461]
[1644920116894,0.18225059,3090.7,3090.4,0.00311461]
[1644920117096,0.46719013,3090.9,3090.4,0.00311461]
[1644920117295,0.46719013,3090.9,3090.1,0.01307106]
[1644920117494,0.16719013,3090.9,3090.4,0.00311461]
[1644920117694,1.10905,3090.8,3090.4,0.00311461]
[1644920117895,2.91813,3091.1,3090.4,0.00311461]
[1644920117896,0.15782321,3091.1,3090.4,0.00311461]
[1644920118096,2.20666233,3091.2,3090.4,0.00311461]
[1644920118495,0.14436775,3091.3,3090.1,0.01307106]
[1644920118695,4.43677361,3091.5,3090.3,0.465]
[1644920118895,0.00311385,3091.2,3091.1,1.08420648]
[1644920119097,0.00311385,3091.2,3090.7,1.61761]
[1644920119497,0.00311385,3091.2,3090.4,1.62083565]
[1644920119498,0.00311385,3091.2,3090.4,0.00311465]
[1644920119697,1.90661135,3091.5,3090.4,0.3]
[1644920119897,1.09767395,3091.5,3090.6,0.80892]
[1644920120097,0.0031139,3091.2,3090.6,0.80892]
[1644920120343,0.0031139,3091.2,3090.4,0.00311471]
[1644920120642,0.0031139,3091.2,3090.6,1.19223192]
[1644920120842,1.41086765,3091.5,3090.6,1.19223192]
[1644920121243,1.62107905,3091.2,3090.4,0.00311465]
[1644920121453,1.78331192,3091.2,3090.4,0.00311465]
[1644920121645,1.81670497,3091.2,3090.4,0.00311465]
[1644920121847,4.71077976,3091.2,3090.4,0.00311465]
[1644920122044,3.89870591,3091.2,3090.1,3.05887106]
[1644920122245,3.89870591,3091.2,3090.2,1.0204318]
[1644920122446,0.80903,3090.9,3090.4,0.00311465]
[1644920122647,1.76528625,3091.0,3090.4,0.00311465]
[1644920122648,0.14712625,3091.0,3090.4,0.00311465]
[1644920122847,3.60632562,3091.2,3090.4,0.00311465]
[1644920123147,0.49471369,3091.2,3090.4,0.00311465]
[1644920123349,0.49159984,3091.2,3090.2,1.0204318]
[1644920123551,0.80899,3091.0,3090.4,0.00311465]
[1644920123749,0.13393179,3091.1,3090.4,0.81209465]
[1644920123990,0.4929616,3091.2,3090.4,0.81209465]
[1644920124196,4.65879348,3091.2,3090.4,0.00311465]
[1644920124397,1.30766279,3091.2,3090.4,0.00311465]
[1644920124593,1.30766279,3091.2,3090.2,1.0204318]
[1644920124594,1.30454894,3091.2,3090.2,1.0204318]
[1644920124794,0.809,3091.0,3090.2,1.0204318]
[1644920125395,0.72391953,3090.9,3090.2,1.0204318]
[1644920125796,1.53293953,3090.9,3090.2,1.0204318]
[1644920125993,0.15022863,3091.0,3090.4,0.00311808]
[1644920126194,0.72390827,3090.9,3090.4,0.00311808]
[1644920126999,0.72390827,3090.9,3090.2,1.0204318]
[1644920127196,0.72390827,3090.9,3090.4,0.8120981]
[1644920127397,0.15022863,3091.0,3090.4,0.8120981]
[1644920127597,0.43496073,3091.2,3090.8,1.15503968]
[1644920127843,0.72380314,3091.1,3090.4,0.8120981]
[1644920128040,0.72380314,3091.1,3090.4,0.80898]
[1644920128440,0.72380314,3091.1,3090.4,0.81209824]
[1644920129141,0.00311743,3091.2,3090.7,1.01601512]
[1644920129342,0.7237651,3091.4,3090.7,1.01601512]
[1644920129744,0.00311733,3091.2,3090.4,2.42981364]
[1644920130041,0.00311733,3091.2,3090.4,0.81209814]
[1644920130243,0.81203733,3091.2,3090.4,0.81209814]
[1644920130443,0.7237651,3091.1,3090.6,0.80891]
[1644920130843,0.7237651,3091.1,3090.4,0.81209816]
[1644920131491,0.7237651,3091.1,3090.5,0.80885]
[1644920132493,0.7237651,3091.1,3090.6,0.80883]
[1644920132895,0.13809218,3091.3,3090.6,0.80883]
[1644920133094,0.72764226,3091.2,3090.6,0.80883]
[1644920133695,0.72764226,3091.2,3090.9,1.12652651]
[1644920133895,0.07156696,3090.8,3090.5,3.23535]
[1644920134094,0.07156696,3090.8,3090.6,1.02148564]
[1644920135358,0.07156696,3090.8,3090.6,1.83036564]
[1644920136357,0.07156696,3090.8,3090.6,2.63925174]
[1644920136754,0.07156696,3090.8,3090.6,1.83036564]
[1644920138155,0.07156696,3090.8,3090.6,2.63925514]
[1644920138356,0.07156696,3090.8,3090.6,1.83036564]
[1644920139001,0.07156696,3090.8,3090.1,0.01307106]
[1644920139002,0.70563088,3090.7,3090.1,0.01307106]
[1644920139200,0.70563088,3090.7,3090.4,0.00311812]
[1644920140004,0.70563088,3090.7,3090.4,1.15092805]
[1644920140201,0.70563088,3090.7,3090.4,1.14780993]
[1644920140403,0.80918,3090.6,3090.4,1.15092804]
[1644920140602,0.70563088,3090.5,3090.4,0.00311811]
[1644920140804,0.70623523,3090.5,3090.4,0.00311811]
[1644920141003,1.00623523,3090.5,3090.4,0.00311811]
[1644920141206,4.57506228,3090.5,3090.4,0.00311811]
[1644920141502,4.57506228,3090.5,3090.1,0.01307106]
[1644920141702,4.57506228,3090.5,3090.3,0.00311817]
[1644920141703,2.51552523,3090.4,3090.3,0.00311817]
[1644920141902,1.66829499,3090.4,3090.3,0.00311817]
[1644920142103,0.70623523,3090.4,3090.3,0.00311817]
[1644920142743,0.8091,3090.5,3090.2,0.6589017]
[1644920142946,0.70623523,3090.4,3090.2,0.66201994]
[1644920143145,0.70623523,3090.3,3090.2,0.66201994]
[1644920143848,0.70623523,3090.3,3090.2,0.6589017]
[1644920145149,0.70623523,3090.4,3090.2,0.6589017]
[1644920145347,0.8643111,3090.4,3090.2,0.6589017]
[1644920145547,0.70623523,3090.3,3090.2,0.6589017]
[1644920147597,0.07156696,3090.8,3090.3,7.0]
[1644920147996,0.07156696,3090.8,3090.3,7.3]
[1644920148794,0.07156696,3090.8,3090.4,0.80905]
[1644920149197,0.07156696,3090.8,3090.7,1.03767923]
[1644920155800,0.07156696,3090.8,3090.7,4.33767923]
[1644920158644,0.00312083,3091.2,3090.8,7.0]
[1644920158849,0.00312083,3091.2,3090.8,8.91756]
[1644920159244,0.00312083,3091.2,3090.9,1.6173972]
[1644920159445,0.93677361,3091.5,3091.4,0.88701979]
[1644920159843,0.93677361,3091.5,3090.8,8.10892]
[1644920160043,1.28506415,3091.3,3090.8,7.3]
[1644920160245,1.28506415,3091.3,3090.7,3.3]
[1644920160444,0.80897,3091.2,3090.7,3.3]
[1644920160847,0.81209095,3091.2,3090.7,3.3]
[1644920161495,0.81209095,3091.2,3090.8,1.03308616]
[1644920161694,0.80897,3091.2,3090.8,1.03308616]
[1644920162593,0.80897,3091.2,3090.7,3.3]
[1644920162994,0.80897,3091.2,3090.8,0.80899]
[1644920163195,0.81209409,3091.2,3090.8,0.80899]
[1644920163394,0.81209409,3091.2,3090.7,3.3]
[1644920163796,0.81209409,3091.2,3090.7,4.31499416]
[1644920163999,0.80903,3091.1,3090.7,4.31499416]
[1644920164197,0.80903,3091.1,3090.8,0.80902]
[1644920164400,0.80903,3091.1,3090.7,3.3]
[1644920164401,3.33443614,3091.0,3090.7,3.3]
[1644920164598,0.3,3091.0,3090.7,3.3]
[1644920164798,1.81270832,3091.0,3090.7,3.3]
[1644920165005,0.80907,3090.9,3090.7,3.3]
[1644920165646,1.10907,3090.9,3090.7,3.3]
[1644920166051,1.26267644,3090.9,3090.7,3.3]
[1644920166646,2.07177444,3090.9,3090.7,3.3]
[1644920167246,0.15360644,3090.9,3090.8,3.1093394]
[1644920167447,0.80896,3091.1,3090.7,3.3]
[1644920167646,0.80896,3091.1,3090.8,0.67410743]
[1644920167647,0.69379907,3091.0,3090.8,0.67410743]
[1644920168348,0.69379907,3091.0,3090.8,1.48301743]
[1644920168548,0.69379907,3091.0,3090.9,0.67410743]
[1644920171409,0.49184637,3091.0,3090.9,0.67410743]
[1644920173981,0.49184637,3091.0,3090.8,0.80891]
[1644920176593,0.49184637,3091.0,3090.8,1.61776]
[1644920176992,0.49184637,3091.0,3090.8,4.75503084]
[1644920177290,0.00312407,3091.2,3090.8,3.94618084]
[1644920177291,0.81201407,3091.2,3090.8,3.94618084]
[1644920177493,0.93677361,3091.5,3090.9,3.94750837]
[1644920177691,0.93677361,3091.5,3091.2,0.8067219]
[1644920177891,0.93677361,3091.5,3091.3,3.24159125]
[1644920178390,0.93677361,3091.5,3091.3,3.98100889]
[1644920178591,0.93677361,3091.5,3091.3,4.82936663]
[1644920178791,0.93677361,3091.5,3091.3,5.63808663]
[1644920178991,0.93677361,3091.5,3091.4,3.09890547]
[1644920179395,2.19884625,3092.1,3091.5,7.0]
[1644920179593,2.19884625,3092.1,3091.6,7.80858]
[1644920179793,0.00306953,3092.0,3091.6,1.61716]
[1644920179996,0.00306953,3092.0,3091.6,0.80858]
[1644920180241,0.47641667,3091.5,3091.4,1.61716]
[1644920180442,0.4794862,3091.5,3091.4,1.61716]
[1644920181745,0.4794862,3091.5,3091.4,5.12165871]
[1644920182344,0.4794862,3091.5,3091.4,3.50449871]
[1644920182547,0.4794862,3091.5,3091.3,2.49451098]
[1644920182844,0.4794862,3091.5,3091.4,3.15863228]
[1644920184517,2.24721485,3092.2,3091.4,3.15863228]
[1644920184518,0.61592828,3092.5,3091.6,25.97]
[1644920184719,2.93746044,3093.1,3091.8,18.97]
[1644920184720,0.61592828,3092.8,3091.8,18.97]
[1644920184916,0.61592828,3093.0,3092.0,18.97]
[1644920185120,3.55338872,3093.1,3092.1,3.5]
[1644920185316,0.76955503,3093.2,3092.0,21.85973]
[1644920185516,3.5,3093.5,3092.2,20.91037516]
[1644920185517,0.61592828,3093.3,3092.2,20.91037516]
[1644920185716,0.61592828,3093.3,3092.5,0.80824]
[1644920186016,0.61592828,3093.2,3092.6,1.02982169]
[1644920186619,0.61592828,3093.1,3092.7,0.80829]
[1644920186819,0.61592828,3093.1,3092.8,1.61657]
[1644920187118,0.75851296,3093.2,3092.8,1.61657]
[1644920187316,0.00312584,3093.1,3092.8,1.61657]
[1644920188345,0.61592828,3093.2,3092.8,1.61657]
[1644920188546,0.00312581,3093.1,3092.8,1.61657]
[1644920189545,0.61592828,3093.3,3092.8,1.61657]
[1644920189745,0.00312581,3093.1,3092.8,1.61657]
[1644920189946,0.00312581,3093.1,3092.8,4.91657]
[1644920190448,0.02018428,3093.0,3092.8,3.3]
[1644920191493,0.6564455,3092.9,3092.8,4.10834]
[1644920192093,0.6564455,3092.9,3092.8,3.3]
[1644920192696,0.25220297,3092.9,3092.8,3.3]
[1644920195846,0.27739847,3092.9,3092.8,3.3]
[1644920197255,4.16300627,3092.9,3092.8,3.3]
[1644920197448,4.46300627,3092.9,3092.8,3.3]
[1644920197647,4.46300627,3092.9,3092.8,1.83169347]
[1644920197648,4.02610719,3092.9,3092.8,1.83169347]
[1644920197848,1.28494663,3092.6,3091.7,0.7826]
[1644920198050,4.85349544,3092.5,3092.2,0.8549147]
[1644920198250,5.96220544,3092.5,3092.2,0.8549147]
[1644920198450,0.46167198,3092.5,3092.2,0.8387522]
[1644920198651,1.28494663,3092.6,3092.2,0.8387522]
[1644920199098,1.28494663,3092.6,3092.2,1.6472722]
[1644920199501,1.28800244,3092.6,3092.2,1.6472722]
[1644920199902,0.00305418,3092.5,3092.2,1.6472722]
[1644920200301,0.00305418,3092.5,3092.2,2.4556922]
[1644920200502,0.00305418,3092.5,3092.2,1.6472722]
[1644920200503,0.00611002,3092.5,3092.2,1.6472722]
[1644920200700,0.00611002,3092.5,3092.2,5.9472722]
[1644920201602,0.00305418,3092.5,3092.3,0.80838]
[1644920201902,0.00425404,3092.5,3092.3,1.80838]
[1644920202745,0.0251955,3092.9,3092.5,0.8083]
[1644920202946,0.0251955,3092.9,3092.6,0.808307]
[1644920203350,0.0251955,3092.9,3092.7,1.05306045]
[1644920204949,0.0251955,3092.9,3092.7,1.86135045]
[1644920205155,0.0251955,3092.9,3092.7,5.39923083]
[1644920205351,0.0251955,3092.9,3092.7,1.86135045]
[1644920205852,2.20224058,3093.9,3093.2,0.80812]
[1644920206052,2.20224058,3093.9,3093.4,1.16894825]
[1644920206695,0.00119756,3093.7,3093.4,1.16894825]
[1644920206997,0.00119756,3093.7,3093.4,1.97702825]
[1644920207196,0.00119756,3093.7,3093.5,3.5]
[1644920207397,0.00119756,3093.7,3093.5,5.1162]
[1644920207700,2.20224058,3094.5,3093.6,1.0]
[1644920207898,0.00119756,3093.8,3093.4,4.66894825]
[1644920208097,0.00119756,3093.8,3093.6,0.80805]
[1644920208298,0.00119756,3093.8,3093.6,1.61616]
[1644920208697,1.61634,3094.5,3094.4,1.16372119]
[1644920208898,1.61634,3094.5,3093.6,1.61616]
[1644920209098,0.00119756,3093.9,3093.6,1.61616]
[1644920209897,0.80812,3094.4,3093.6,1.61616]
[1644920210247,0.80812,3094.4,3094.1,0.97019168]
[1644920211545,0.81125094,3094.4,3094.1,0.97019168]
[1644920211745,0.3,3094.3,3094.1,0.97019168]
[1644920212146,1.10814,3094.3,3094.1,0.97019168]
[1644920212347,0.80814,3094.3,3094.1,0.97019168]
[1644920212548,1.10814,3094.3,3094.1,4.27019168]
[1644920212748,0.59583359,3094.2,3094.1,4.27019168]
[1644920212946,0.59583359,3094.2,3094.1,2.98591469]
[1644920216305,0.59583359,3094.2,3094.1,2.70560215]
[1644920216706,0.00120944,3094.3,3094.1,2.70560215]
[1644920217106,1.40394359,3094.4,3094.1,2.70560215]
[1644920217307,0.59583359,3094.3,3094.1,2.70560215]
[1644920217748,0.00120944,3094.4,3094.1,1.23799013]
[1644920217749,0.59583359,3094.2,3094.1,1.23799013]
[1644920217953,0.5988725,3094.2,3094.1,1.23799013]
[1644920218649,0.61250681,3094.8,3094.3,7.0]
[1644920218853,3.81838058,3094.9,3094.3,7.0]
[1644920218854,2.20224058,3094.9,3094.3,7.0]
[1644920219050,2.20224058,3094.9,3094.3,7.80788]
[1644920219250,4.86190681,3095.1,3094.3,7.80788]
[1644920219458,0.61250681,3095.2,3094.3,7.80788]
[1644920219850,0.61250681,3095.2,3094.3,8.6157537]
[1644920220151,0.61250681,3095.1,3095.0,1.03616032]
[1644920220352,0.61250681,3095.2,3095.0,1.03616032]
[1644920220851,2.20224058,3095.6,3095.0,1.03616032]
[1644920221051,0.00302372,3095.3,3095.0,1.03616032]
[1644920221251,0.00302372,3095.5,3095.1,3.10066122]
[1644920221703,0.00302372,3095.5,3095.1,4.71604122]
[1644920222101,0.00302372,3095.8,3095.2,0.8076627]
[1644920222301,0.00302372,3095.8,3095.3,3.1850408]
[1644920222302,0.00314797,3095.5,3095.3,3.1850408]
[1644920223001,0.00314797,3095.5,3095.2,0.8077]
[1644920223205,0.00302372,3096.0,3095.7,1.01874038]
[1644920223402,0.00302372,3096.0,3095.3,3.26659561]
[1644920223602,0.00302372,3096.0,3094.9,3.42276166]
[1644920223802,0.61553053,3096.0,3094.9,4.23045166]
[1644920224002,0.91250681,3096.0,3095.2,0.80772]
[1644920224302,0.00302372,3095.9,3095.2,0.80772]
[1644920224503,0.00302372,3095.9,3095.4,1.13849463]
[1644920224702,0.00314778,3095.8,3095.4,1.13849463]
[1644920224903,0.80773,3095.9,3095.4,1.13849463]
[1644920225103,0.80773,3095.9,3095.2,0.80772]
[1644920225347,0.0030086,3095.8,3095.2,0.80772]
[1644920225749,0.0030086,3095.8,3095.2,3.92327768]
[1644920225949,0.0030086,3095.8,3095.2,0.80047796]
[1644920226352,0.0030086,3095.8,3095.4,0.97201713]
[1644920226550,0.8107586,3095.8,3095.4,0.97201713]
[1644920226946,0.8107586,3095.8,3094.8,6.25566538]
[1644920226947,0.8107586,3095.8,3094.8,4.63837471]
[1644920227146,0.8107586,3095.8,3094.8,1.2238]
[1644920227547,0.8107586,3095.8,3094.8,2.03161]
[1644920227749,0.8107586,3095.8,3094.8,2.83933]
[1644920227946,0.8107586,3095.8,3095.4,1.12679465]
[1644920231998,1.1107586,3095.8,3095.4,1.12679465]
[1644920232848,0.8107586,3095.8,3095.4,1.12679465]
[1644920234044,0.0030086,3095.8,3095.4,1.12679465]
[1644920234646,0.0031662,3096.0,3095.4,4.42679465]
[1644920235045,0.0031662,3096.0,3095.9,1.02992801]
[1644920235246,0.0030086,3096.2,3095.9,1.02992801]
[1644920235448,0.00316624,3096.0,3095.9,1.02992801]
[1644920235646,0.00316624,3096.0,3095.5,0.80765]
[1644920235847,0.00617484,3096.0,3095.4,3.3]
[1644920236050,0.00316624,3096.0,3095.4,3.3]
[1644920236496,0.0030086,3096.2,3095.4,3.3]
[1644920236696,0.80772,3095.9,3095.8,0.88781539]
[1644920237698,0.80772,3095.9,3095.7,0.87645683]
[1644920237896,0.0030086,3095.8,3095.4,3.52858113]
[1644920238496,0.0030086,3095.8,3095.5,3.18282213]
[1644920238698,0.0030086,3096.1,3095.5,3.99046213]
[1644920238899,0.51652781,3096.3,3095.5,3.99046213]
[1644920239198,0.0031662,3096.0,3095.5,3.99046213]
[1644920239397,0.0031662,3096.0,3095.5,0.80764]
[1644920239997,0.0030086,3096.1,3095.5,0.80764]
[1644920240256,0.00316626,3096.0,3095.6,1.03729736]
[1644920240455,0.00316626,3096.0,3095.6,1.84487736]
[1644920240852,0.00316626,3096.0,3095.6,2.84487736]
[1644920241263,0.0030086,3096.3,3095.6,1.84487736]
[1644920241453,0.00316628,3096.0,3095.6,1.84487736]
[1644920242054,0.00316628,3096.0,3095.6,1.03729736]
[1644920242252,0.00316628,3096.0,3095.4,3.3]